[Event "Romanian-ch Women 2022"]
[Site "Eforie Nord"]
[Date "2022.02.25"]
[Round "7.4"]
[White "Ionescu, Irina"]
[Black "Cosma, Elena-Luminita"]
[Result "1/2-1/2"]
[ECO "C01"]
[WhiteElo "2131"]
[BlackElo "2281"]
[Annotator "NA"]
[PlyCount "137"]
[EventDate "2022.02.20"]
[EventType "swiss"]
[EventCountry "ROU"]
[SourceTitle "playchess.com"]
[Source "ChessBase"]
[SourceQuality "1"]
[TimeControl "40/5400+30:900+30"]

1. e4 {[%emt 0:00:14]} e6 {[%emt 0:00:00]} 2. d4 {[%emt 0:00:30]} d5 {[%emt 0:00:00]} 3. exd5 {[%emt 0:00:30]} exd5 {[%emt 0:00:02]} 4. Nf3 {[%emt 0:00:30]} Nf6 {[%emt 0:00:30]} 5. Bd3 {[%emt 0:00:30]} c5 {[%emt 0:00:30]} 6. Qe2+ {[%emt 0:00:30]} Be7 {[%emt 0:00:30]} 7. dxc5 {[%emt 0:00:30]} O-O {[%emt 0:00:30]} 8. O-O {[%emt 0:00:30]} Nc6 {[%emt 0:00:30]} 9. h3 {[%emt 0:00:30]} Re8 {[%emt 0:00:30]} 10. Bg5 {[%emt 0:00:30]} h6 {[%emt 0:00:30]} 11. Bh4 {[%emt 0:00:30]} g5 {[%emt 0:00:30]} 12. Bg3 {[%emt 0:00:30]} Bxc5 {[%emt 0:00:30]} 13. Qd1 {[%emt 0:00:30]} Ne4 {[%emt 0:00:30]} 14. Bxe4 {[%emt 0:00:30]} dxe4 {[%emt 0:00:30]} 15. Nfd2 {[%emt 0:00:30]} Bf5 {[%emt 0:00:30]} 16. Nb3 {[%emt 0:45:46]} Qxd1 {[%emt 0:49:41]} 17. Rxd1 {[%emt 0:00:30]} Bb6 {[%emt 0:00:30]} 18. Na3 {[%emt 0:00:30]} Be6 {[%emt 0:00:30]} 19. Nb5 {[%emt 0:00:30]} Rad8 {[%emt 0:00:30]} 20. Bc7 {[%emt 0:00:30]} Rxd1+ {[%emt 0:00:30]} 21. Rxd1 {[%emt 0:00:30]} Bxb3 {[%emt 0:00:30]} 22. axb3 {[%emt 0:00:30]} Bc5 {[%emt 0:00:30]} 23. Bd6 {[%emt 0:00:30]} Rd8 {[%emt 0:00:30]} 24. Rd5 {[%emt 0:00:30]} e3 {[%emt 0:00:30]} 25. Kf1 {[%emt 0:00:30]} Bb6 {[%emt 0:00:30]} 26. fxe3 {[%emt 0:00:30]} Ne7 {[%emt 0:00:30]} 27. Rd3 {[%emt 0:00:30]} Nf5 {[%emt 0:00:30]} 28. e4 {[%emt 0:00:30]} Ne3+ {[%emt 0:00:30]} 29. Ke2 {[%emt 0:00:30]} Nxg2 {[%emt 0:00:30]} 30. Bg3 {[%emt 0:00:30]} Re8 {[%emt 0:00:30]} 31. Kf3 {[%emt 0:00:30]} Nh4+ {[%emt 0:00:30]} 32. Bxh4 {[%emt 0:00:30]} gxh4 {[%emt 0:00:30]} 33. Nd6 {[%emt 0:00:30]} Re6 {[%emt 0:00:30]} 34. Nf5 {[%emt 0:00:30]} a5 {[%emt 0:00:30]} 35. Rd6 {[%emt 0:00:30]} Bc7 {[%emt 0:00:30]} 36. Nxh6+ {[%emt 0:00:30]} Kf8 {[%emt 0:00:30]} 37. Rxe6 {[%emt 0:00:30]} fxe6 {[%emt 0:00:30]} 38. Ng4 {[%emt 0:00:30]} Bg3 {[%emt 0:00:30]} 39. Ne3 {[%emt 0:00:30]} b5 {[%emt 0:00:30]} 40. Ke2 {[%emt 0:00:30]} Ke7 {[%emt 0:00:30]} 41. Kd3 {[%emt 0:15:30]} Kd6 {[%emt 0:15:30]} 42. Ng4 {[%emt 0:00:30]} Kc5 {[%emt 0:00:30]} 43. Nf6 {[%emt 0:00:30]} Kd6 {[%emt 0:00:30]} 44. Ng4 {[%emt 0:00:30]} Kc5 {[%emt 0:00:30]} 45. Ne3 {[%emt 0:00:30]} Bf4 {[%emt 0:00:30]} 46. Nd1 {[%emt 0:00:30]} Bc1 {[%emt 0:00:30]} 47. c3 {[%emt 0:00:30]} Bg5 {[%emt 0:00:30]} 48. Nf2 {[%emt 0:00:30]} Kd6 {[%emt 0:00:30]} 49. c4 {[%emt 0:00:30]} Kc5 {[%emt 0:00:30]} 50. cxb5 {[%emt 0:00:30]} Bf6 {[%emt 0:00:30]} 51. b6 {[%emt 0:00:30]} Kxb6 {[%emt 0:00:30]} 52. Kc4 {[%emt 0:00:30]} Bxb2 {[%emt 0:00:30]} 53. Nd3 {[%emt 0:00:30]} Ba1 {[%emt 0:00:30]} 54. Nf4 {[%emt 0:00:30]} Kc6 {[%emt 0:00:30]} 55. Nxe6 {[%emt 0:00:30]} Kd6 {[%emt 0:00:30]} 56. Ng5 {[%emt 0:00:30]} Ke5 {[%emt 0:00:30]} 57. Nf3+ {[%emt 0:00:30]} Kxe4 {[%emt 0:00:30]} 58. Nxh4 {[%emt 0:00:30]} Kf4 {[%emt 0:00:30]} 59. Ng6+ {[%emt 0:00:30]} Kg5 {[%emt 0:00:30]} 60. Ne7 {[%emt 0:00:30]} Be5 {[%emt 0:00:30]} 61. Kb5 {[%emt 0:00:30]} Bc3 {[%emt 0:00:30]} 62. Nc6 {[%emt 0:00:30]} Kh4 {[%emt 0:00:30]} 63. Nxa5 {[%emt 0:00:30]} Kxh3 {[%emt 0:00:30]} 64. Nc6 {[%emt 0:00:30]} Kg4 {[%emt 0:00:30]} 65. Kc4 {[%emt 0:00:30]} Be1 {[%emt 0:00:30]} 66. Ne5+ {[%emt 0:00:30]} Kf5 {[%emt 0:00:30]} 67. Nf3 {[%emt 0:00:30]} Ba5 {[%emt 0:00:30]} 68. Kd5 {[%emt 0:00:30]} Kf6 {[%emt 0:00:30]} 69. Nd4 {[%emt 0:00:30]} 1/2-1/2

[Event "Romanian-ch Women 2022"]
[Site "Eforie Nord"]
[Date "2022.02.25"]
[Round "7.5"]
[White "Dragomirescu, Angela"]
[Black "Cosman, Andreea-Marioara"]
[Result "1/2-1/2"]
[ECO "A46"]
[WhiteElo "2167"]
[BlackElo "2127"]
[Annotator "ChessBase"]
[PlyCount "48"]
[EventDate "2022.02.20"]
[EventType "swiss"]
[EventCountry "ROU"]
[SourceTitle "playchess.com"]
[Source "ChessBase"]
[SourceQuality "1"]
[TimeControl "40/5400+30:900+30"]

1. d4 {[%emt 0:00:45]} Nf6 {[%emt 0:00:00]} 2. Nf3 {[%emt 0:00:30]} e6 {[%emt 0:00:00]} 3. g3 {[%emt 0:00:30]} b5 {[%emt 0:00:04]} 4. Bg2 {[%emt 0:00:30]} Bb7 {[%emt 0:00:30]} 5. a4 {[%emt 0:00:30]} b4 {[%emt 0:00:30]} 6. c4 {[%emt 0:00:30]} bxc3 {[%emt 0:00:30]} 7. bxc3 {[%emt 0:00:30]} d5 {[%emt 0:00:30]} 8. O-O {[%emt 0:00:30]} Nbd7 {[%emt 0:00:30]} 9. Nbd2 {[%emt 0:10:12]} Be7 {[%emt 0:09:06]} 10. c4 {[%emt 0:07:44]} dxc4 {[%emt 0:02:45]} 11. Nxc4 {[%emt 0:00:22]} O-O {[%emt 0:01:08]} 12. Bd2 {[%emt 0:13:07]} Bd5 {[%emt 0:11:21]} 13. Rc1 {[%emt 0:14:29]} c5 {[%emt 0:08:35]} 14. Ba5 {[%emt 0:02:36]} Qc8 {[%emt 0:08:43]} 15. Ne3 {[%emt 0:16:12]} Bc6 {[%emt 0:12:43]} 16. Ne5 {[%emt 0:11:43]} Bxg2 {[%emt 0:04:14]} 17. Kxg2 {[%emt 0:00:02]} Qa6 {[%emt 0:05:06]} 18. Nxd7 {[%emt 0:04:33]} Nxd7 {[%emt 0:01:51]} 19. Bc3 {[%emt 0:00:11]} cxd4 {[%emt 0:02:50]} 20. Bxd4 {[%emt 0:03:19]} Nb6 {[%emt 0:03:59]} 21. Qc2 {[%emt 0:03:16]} Rfc8 {[%emt 0:07:38]} 22. Qa2 {[%emt 0:01:23]} Rxc1 {[%emt 0:09:44]} 23. Rxc1 {[%emt 0:00:03]} Nxa4 {[%emt 0:02:57]} 24. Kg1 {[%emt 0:01:47]} Qb5 {[%emt 0:01:06]} 1/2-1/2

[Event "Romanian-ch Women 2022"]
[Site "Eforie Nord"]
[Date "2022.02.25"]
[Round "7.6"]
[White "Baciu, Anca-Otilia"]
[Black "Batagan, Ilinca-Petra"]
[Result "1-0"]
[ECO "B87"]
[WhiteElo "2014"]
[BlackElo "1881"]
[Annotator "NA"]
[PlyCount "97"]
[EventDate "2022.02.20"]
[EventType "swiss"]
[EventCountry "ROU"]
[SourceTitle "playchess.com"]
[Source "ChessBase"]
[SourceQuality "1"]
[TimeControl "40/5400+30:900+30"]

1. e4 {[%emt 0:00:00]} c5 {[%emt 0:00:00]} 2. Nf3 {[%emt 0:00:00]} d6 {[%emt 0:00:00]} 3. d4 {[%emt 0:00:00]} cxd4 {[%emt 0:00:08]} 4. Nxd4 {[%emt 0:00:00]} Nf6 {[%emt 0:00:30]} 5. Nc3 {[%emt 0:00:18]} a6 {[%emt 0:00:30]} 6. Bc4 {[%emt 0:00:30]} e6 {[%emt 0:00:30]} 7. O-O {[%emt 0:00:30]} b5 {[%emt 0:00:30]} 8. Bb3 {[%emt 0:00:30]} Be7 {[%emt 0:00:30]} 9. f4 {[%emt 0:00:30]} Bb7 {[%emt 0:00:30]} 10. Be3 {[%emt 0:00:30]} b4 {[%emt 0:00:30]} 11. Nd5 {[%emt 0:00:30]} exd5 {[%emt 0:00:30]} 12. e5 {[%emt 0:00:30]} dxe5 {[%emt 0:00:30]} 13. fxe5 {[%emt 0:00:30]} O-O {[%emt 0:00:30]} 14. exf6 {[%emt 0:00:30]} Bxf6 {[%emt 0:00:30]} 15. Qg4 {[%emt 0:00:30]} Nc6 {[%emt 0:00:30]} 16. Rad1 {[%emt 0:00:30]} Nxd4 {[%emt 0:00:30]} 17. Bxd4 {[%emt 0:00:30]} Bxd4+ {[%emt 0:00:30]} 18. Qxd4 {[%emt 0:00:30]} a5 {[%emt 0:00:30]} 19. Bxd5 {[%emt 0:00:30]} Bxd5 {[%emt 0:00:30]} 20. Qxd5 {[%emt 0:00:30]} Qxd5 {[%emt 0:00:30]} 21. Rxd5 {[%emt 0:00:30]} Rfd8 {[%emt 0:00:30]} 22. Rfd1 {[%emt 0:00:30]} Rxd5 {[%emt 0:00:30]} 23. Rxd5 {[%emt 0:00:30]} Kf8 {[%emt 0:00:30]} 24. Rc5 {[%emt 0:00:30]} Ke7 {[%emt 0:00:30]} 25. Kf2 {[%emt 0:00:30]} Kd6 {[%emt 0:00:30]} 26. Rc4 {[%emt 0:00:30]} Re8 {[%emt 0:00:30]} 27. c3 {[%emt 0:00:30]} bxc3 {[%emt 0:00:30]} 28. Rxc3 {[%emt 0:00:30]} Re7 {[%emt 0:00:30]} 29. Rc4 {[%emt 0:00:30]} g6 {[%emt 0:00:30]} 30. g4 {[%emt 0:00:30]} Re5 {[%emt 0:00:30]} 31. Kf3 {[%emt 0:00:30]} f5 {[%emt 0:00:30]} 32. g5 {[%emt 0:00:30]} Re7 {[%emt 0:00:30]} 33. Ra4 {[%emt 0:00:30]} Re5 {[%emt 0:00:30]} 34. Rd4+ {[%emt 0:00:30]} Rd5 {[%emt 0:00:30]} 35. Rh4 {[%emt 0:00:30]} Rd2 {[%emt 0:00:30]} 36. Rxh7 {[%emt 0:00:30]} Rxb2 {[%emt 0:00:30]} 37. Rh6 {[%emt 0:00:30]} Rxa2 {[%emt 0:00:30]} 38. Rxg6+ {[%emt 0:00:30]} Ke7 {[%emt 0:00:30]} 39. h4 {[%emt 0:00:30]} Rh2 {[%emt 0:00:30]} 40. Kg3 {[%emt 0:00:30]} Rh1 {[%emt 0:00:30]} 41. Rf6 {[%emt 0:15:30]} Rf1 {[%emt 0:15:30]} 42. h5 {[%emt 0:00:30]} Rg1+ {[%emt 0:00:30]} 43. Kf4 {[%emt 0:00:30]} Rf1+ {[%emt 0:00:30]} 44. Ke5 {[%emt 0:00:30]} a4 {[%emt 0:00:30]} 45. Ra6 {[%emt 0:00:30]} Kf7 {[%emt 0:00:30]} 46. Ra7+ {[%emt 0:00:30]} Kg8 {[%emt 0:00:30]} 47. Kf6 {[%emt 0:00:30]} Rb1 {[%emt 0:00:30]} 48. Ra8+ {[%emt 0:00:30]} Kh7 {[%emt 0:00:30]} 49. g6+ {[%emt 0:00:30]} 1-0

[Event "Romanian-ch Women 2022"]
[Site "Eforie Nord"]
[Date "2022.02.25"]
[Round "7.7"]
[White "Didiliuc, Dariana-Gabriela"]
[Black "Trifoi, Mihaela-Ioana"]
[Result "1-0"]
[ECO "D35"]
[WhiteElo "1841"]
[BlackElo "1893"]
[Annotator "NA"]
[PlyCount "160"]
[EventDate "2022.02.20"]
[EventType "swiss"]
[EventCountry "ROU"]
[SourceTitle "playchess.com"]
[Source "ChessBase"]
[SourceQuality "1"]
[TimeControl "40/5400+30:900+30"]

1. d4 {[%emt 0:02:17]} d5 {[%emt 0:00:00]} 2. c4 {[%emt 0:00:17]} e6 {[%emt 0:00:25]} 3. Nc3 {[%emt 0:00:24]} Nf6 {[%emt 0:00:25]} 4. cxd5 {[%emt 0:00:18]} exd5 {[%emt 0:00:20]} 5. Bg5 {[%emt 0:00:18]} Be7 {[%emt 0:00:21]} 6. e3 {[%emt 0:00:25]} O-O {[%emt 0:00:27]} 7. Bd3 {[%emt 0:00:25]} h6 {[%emt 0:00:07]} 8. Bh4 {[%emt 0:00:25]} b6 {[%emt 0:01:24]} 9. Qc2 {[%emt 0:00:27]} Bb7 {[%emt 0:01:44]} 10. Nge2 {[%emt 0:00:23]} Nbd7 {[%emt 0:00:55]} 11. O-O {[%emt 0:00:34]} c5 {[%emt 0:01:51]} 12. Rad1 {[%emt 0:00:33]} Ne4 {[%emt 0:01:56]} 13. Bxe7 {[%emt 0:02:56]} Qxe7 {[%emt 0:00:10]} 14. Rfe1 {[%emt 0:02:16]} Rac8 {[%emt 0:03:07]} 15. Nf4 {[%emt 0:09:38]} Nxc3 {[%emt 0:03:38]} 16. Qxc3 {[%emt 0:05:01]} Nf6 {[%emt 0:04:55]} 17. Bb1 {[%emt 0:01:46]} Ne4 {[%emt 0:02:39]} 18. Qd3 {[%emt 0:00:40]} Rfd8 {[%emt 0:13:55]} 19. Qa3 {[%emt 0:15:34]} a6 {[%emt 0:12:08]} 20. Qb3 {[%emt 0:02:11]} b5 {[%emt 0:00:15]} 21. dxc5 {[%emt 0:01:27]} Nxc5 {[%emt 0:00:20]} 22. Qb4 {[%emt 0:02:07]} Qg5 {[%emt 0:06:31]} 23. Nh3 {[%emt 0:04:49]} Qf6 {[%emt 0:00:21]} 24. b3 {[%emt 0:04:11]} Ne6 {[%emt 0:01:12]} 25. Qg4 {[%emt 0:02:23]} d4 {[%emt 0:01:21]} 26. e4 {[%emt 0:01:09]} Rc3 {[%emt 0:05:41]} 27. e5 {[%emt 0:04:29]} Qe7 {[%emt 0:00:24]} 28. Nf4 {[%emt 0:03:26]} Qg5 {[%emt 0:15:15]} 29. Qxg5 {[%emt 0:01:26]} Nxg5 {[%emt 0:00:16]} 30. Ne2 {[%emt 0:00:14]} Rc5 {[%emt 0:01:42]} 31. Rxd4 {[%emt 0:00:59]} Re8 {[%emt 0:03:05]} 32. f4 {[%emt 0:07:39]} Ne6 {[%emt 0:00:31]} 33. Rd7 {[%emt 0:02:07]} Bc8 {[%emt 0:02:13]} 34. Rd6 {[%emt 0:00:52]} a5 {[%emt 0:00:46]} 35. Red1 {[%emt 0:02:05]} b4 {[%emt 0:03:11]} 36. R6d5 {[%emt 0:01:03]} Ba6 {[%emt 0:06:40]} 37. Rxc5 {[%emt 0:11:34]} Nxc5 {[%emt 0:00:10]} 38. Ng3 {[%emt 0:00:53]} a4 {[%emt 0:01:08]} 39. bxa4 {[%emt 0:02:22]} Nxa4 {[%emt 0:00:08]} 40. Rd4 {[%emt 0:00:00]} Rb8 {[%emt 0:00:00]} 41. Bc2 {[%emt 0:01:57]} Nc5 {[%emt 0:01:29]} 42. Nf5 {[%emt 0:03:05]} Ne6 {[%emt 0:03:41]} 43. Re4 {[%emt 0:00:35]} Kf8 {[%emt 0:00:11]} 44. Nd6 {[%emt 0:02:06]} Nc5 {[%emt 0:00:33]} 45. Re1 {[%emt 0:01:23]} Bd3 {[%emt 0:03:48]} 46. Rc1 {[%emt 0:01:56]} b3 {[%emt 0:04:27]} 47. Bxb3 {[%emt 0:00:46]} Nxb3 {[%emt 0:00:14]} 48. axb3 {[%emt 0:00:06]} Rxb3 {[%emt 0:00:34]} 49. Rc8+ {[%emt 0:00:08]} Ke7 {[%emt 0:00:07]} 50. Rc7+ {[%emt 0:00:14]} Ke6 {[%emt 0:01:16]} 51. Rxf7 {[%emt 0:00:58]} g6 {[%emt 0:01:10]} 52. Rf6+ {[%emt 0:01:44]} Ke7 {[%emt 0:00:25]} 53. Nf7 {[%emt 0:00:46]} Rb2 {[%emt 0:01:26]} 54. Nh8 {[%emt 0:02:54]} g5 {[%emt 0:00:58]} 55. fxg5 {[%emt 0:00:40]} hxg5 {[%emt 0:00:07]} 56. Ng6+ {[%emt 0:00:25]} Ke8 {[%emt 0:01:50]} 57. g4 {[%emt 0:00:41]} Rb1+ {[%emt 0:01:06]} 58. Kg2 {[%emt 0:00:14]} Rb2+ {[%emt 0:01:23]} 59. Kg3 {[%emt 0:01:24]} Rb1 {[%emt 0:00:51]} 60. h3 {[%emt 0:02:15]} Rg1+ {[%emt 0:02:33]} 61. Kh2 {[%emt 0:00:13]} Re1 {[%emt 0:00:23]} 62. e6 {[%emt 0:01:16]} Bxg6 {[%emt 0:00:34]} 63. Rxg6 {[%emt 0:00:06]} Re5 {[%emt 0:00:06]} 64. h4 {[%emt 0:02:25]} gxh4 {[%emt 0:00:14]} 65. Kh3 {[%emt 0:00:06]} Ke7 {[%emt 0:00:13]} 66. Kxh4 {[%emt 0:00:08]} Re1 {[%emt 0:00:50]} 67. Kg5 {[%emt 0:02:45]} Re5+ {[%emt 0:00:39]} 68. Kh6 {[%emt 0:00:11]} Re1 {[%emt 0:00:15]} 69. g5 {[%emt 0:00:57]} Rh1+ {[%emt 0:01:23]} 70. Kg7 {[%emt 0:00:06]} Rg1 {[%emt 0:00:10]} 71. Kg8 {[%emt 0:00:06]} Rg2 {[%emt 0:00:11]} 72. Rg7+ {[%emt 0:02:35]} Kxe6 {[%emt 0:00:07]} 73. Kh7 {[%emt 0:00:14]} Kf5 {[%emt 0:02:43]} 74. Rf7+ {[%emt 0:00:11]} Ke6 {[%emt 0:00:04]} 75. g6 {[%emt 0:00:04]} Rg1 {[%emt 0:00:48]} 76. Rf2 {[%emt 0:00:11]} Ke7 {[%emt 0:00:36]} 77. g7 {[%emt 0:00:08]} Rh1+ {[%emt 0:00:13]} 78. Kg8 {[%emt 0:00:06]} Rg1 {[%emt 0:00:12]} 79. Re2+ {[%emt 0:00:04]} Kd6 {[%emt 0:01:50]} 80. Re4 {[%emt 0:00:19]} Kd5 {[%emt 0:00:00]} 1-0

[Event "Romanian-ch Women 2022"]
[Site "Eforie Nord"]
[Date "2022.02.25"]
[Round "7.8"]
[White "Panainte, Andreea-Bianca"]
[Black "Marin, Irina-Luiza"]
[Result "1-0"]
[ECO "B15"]
[WhiteElo "1865"]
[BlackElo "2058"]
[Annotator "ChessBase"]
[PlyCount "71"]
[EventDate "2022.02.20"]
[EventType "swiss"]
[EventCountry "ROU"]
[SourceTitle "playchess.com"]
[Source "ChessBase"]
[SourceQuality "1"]
[TimeControl "40/5400+30:900+30"]

1. e4 {[%emt 1:31:00]} c6 2. d4 {[%emt 0:00:30]} d5 3. Nc3 {[%emt 0:00:30]} g6 4. Nf3 {[%emt 0:00:30]} Bg7 5. Be3 {[%emt 0:00:30]} Nh6 6. exd5 {[%emt 0:00:30]} cxd5 7. Bb5+ {[%emt 0:00:30]} Nc6 8. Ne5 {[%emt 0:00:30]} Bd7 9. Nxd7 {[%emt 0:00:30]} Qxd7 10. Qf3 {[%emt 0:00:30]} Rd8 {[%emt 1:35:30]} 11. Bxh6 {[%emt 0:00:30]} Bxh6 {[%emt 0:00:30]} 12. h4 {[%emt 0:00:30]} O-O {[%emt 0:00:30]} 13. Bxc6 {[%emt 0:00:30]} bxc6 {[%emt 0:00:30]} 14. O-O {[%emt 0:00:30]} Bg7 {[%emt 0:00:30]} 15. Ne2 {[%emt 0:00:30]} c5 {[%emt 0:00:30]} 16. c3 {[%emt 0:00:30]} cxd4 {[%emt 0:00:30]} 17. cxd4 {[%emt 0:00:30]} h5 {[%emt 0:00:30]} 18. Rac1 {[%emt 0:00:30]} Rc8 {[%emt 0:00:30]} 19. b3 {[%emt 0:00:30]} Bh6 {[%emt 0:00:30]} 20. Nf4 {[%emt 0:00:30]} e6 {[%emt 0:00:30]} 21. g3 {[%emt 0:00:30]} Rc7 {[%emt 0:00:30]} 22. Rxc7 {[%emt 0:00:30]} Qxc7 {[%emt 0:00:30]} 23. Re1 {[%emt 0:00:30]} Qc2 {[%emt 0:00:30]} 24. a3 {[%emt 0:00:30]} Qb2 {[%emt 0:00:30]} 25. Rd1 {[%emt 0:00:30]} Qxa3 {[%emt 0:00:30]} 26. Kg2 {[%emt 0:00:30]} Qb2 {[%emt 0:00:30]} 27. Rd3 {[%emt 0:00:30]} Bg7 {[%emt 0:00:30]} 28. g4 {[%emt 0:00:30]} hxg4 {[%emt 0:00:30]} 29. Qxg4 {[%emt 0:00:30]} Bxd4 {[%emt 0:00:30]} 30. Rf3 {[%emt 0:00:30]} Bg7 {[%emt 0:00:30]} 31. h5 {[%emt 0:00:30]} gxh5 {[%emt 0:00:30]} 32. Nxh5 {[%emt 0:00:30]} Kh7 {[%emt 0:00:30]} 33. Qh4 {[%emt 0:00:30]} Bh6 {[%emt 0:00:30]} 34. Nf6+ {[%emt 0:00:30]} Kg6 {[%emt 0:00:30]} 35. Rg3+ {[%emt 0:00:30]} Kf5 {[%emt 0:00:30]} 36. Qxh6 {[%emt 0:00:30]} 1-0

[Event "Romanian-ch Women 2022"]
[Site "Eforie Nord"]
[Date "2022.02.25"]
[Round "7.9"]
[White "Nikanova, Ekaterina"]
[Black "Anghel, Maria"]
[Result "1-0"]
[ECO "B75"]
[WhiteElo "1935"]
[BlackElo "1834"]
[Annotator "NA"]
[PlyCount "69"]
[EventDate "2022.02.20"]
[EventType "swiss"]
[EventCountry "ROU"]
[SourceTitle "playchess.com"]
[Source "ChessBase"]
[SourceQuality "1"]
[TimeControl "40/5400+30:900+30"]

1. e4 c5 2. Nf3 d6 3. d4 cxd4 4. Nxd4 Nf6 5. Nc3 g6 6. Be3 Bg7 7. f3 a6 8. Qd2 h5 9. h4 b5 10. a3 Bb7 11. O-O-O Nbd7 12. Bd3 Rc8 13. Kb1 Ne5 14. f4 Neg4 15. Bg1 Rxc3 16. Qxc3 Nxe4 17. Qe1 Nc5 18. Qd2 O-O 19. f5 Ne5 20. Be3 Qd7 21. fxg6 {[%emt 0:09:46]} fxg6 {[%emt 0:08:38]} 22. Rhf1 {[%emt 0:00:30]} Rxf1 {[%emt 0:00:30]} 23. Rxf1 {[%emt 0:00:30]} Ncxd3 {[%emt 0:00:30]} 24. cxd3 {[%emt 0:00:30]} Ng4 {[%emt 0:00:30]} 25. Bg1 {[%emt 0:00:30]} e5 {[%emt 0:00:30]} 26. Nf3 {[%emt 0:00:30]} b4 {[%emt 0:00:30]} 27. axb4 {[%emt 0:00:30]} Bd5 {[%emt 0:00:30]} 28. Qc2 {[%emt 0:00:30]} Qb7 {[%emt 0:00:30]} 29. Ng5 {[%emt 0:00:30]} Nf6 {[%emt 0:00:30]} 30. Rc1 {[%emt 0:00:30]} Qxb4 {[%emt 0:00:30]} 31. Qc8+ {[%emt 0:00:30]} Bf8 {[%emt 0:00:30]} 32. Ne6 {[%emt 0:00:30]} Bxe6 {[%emt 0:00:30]} 33. Qxe6+ {[%emt 0:00:30]} Kg7 {[%emt 0:00:30]} 34. Rc7+ {[%emt 0:00:30]} Kh6 {[%emt 0:00:30]} 35. Be3+ {[%emt 1:12:25]} 1-0

[Event "Romanian-ch Women 2022"]
[Site "Eforie Nord"]
[Date "2022.02.25"]
[Round "7.10"]
[White "Matasaru, Stephanie"]
[Black "Hoanca, Alexia-Ioana"]
[Result "0-1"]
[ECO "B12"]
[WhiteElo "1861"]
[BlackElo "1710"]
[Annotator "NA"]
[PlyCount "138"]
[EventDate "2022.02.20"]
[EventType "swiss"]
[EventCountry "ROU"]
[SourceTitle "playchess.com"]
[Source "ChessBase"]
[SourceQuality "1"]
[TimeControl "40/5400+30:900+30"]

1. e4 {[%emt 0:00:44]} c6 {[%emt 0:00:00]} 2. d4 {[%emt 0:00:30]} d5 {[%emt 0:00:00]} 3. e5 {[%emt 0:00:30]} Bf5 {[%emt 0:00:16]} 4. Nf3 {[%emt 0:00:30]} h6 {[%emt 0:00:30]} 5. Be2 {[%emt 0:00:30]} e6 {[%emt 0:00:30]} 6. O-O {[%emt 0:00:30]} g5 {[%emt 0:00:30]} 7. b3 {[%emt 0:00:30]} Ne7 {[%emt 0:00:30]} 8. c4 {[%emt 0:00:30]} Nd7 {[%emt 0:00:30]} 9. Nc3 {[%emt 0:00:30]} dxc4 {[%emt 0:00:30]} 10. bxc4 {[%emt 0:00:30]} Bg7 {[%emt 0:00:30]} 11. Bb2 {[%emt 0:00:30]} O-O {[%emt 0:00:30]} 12. a4 {[%emt 0:00:30]} c5 {[%emt 0:00:30]} 13. dxc5 {[%emt 0:00:30]} Nxe5 {[%emt 0:00:30]} 14. Nxe5 {[%emt 0:00:30]} Bxe5 {[%emt 0:00:30]} 15. Qxd8 {[%emt 0:00:30]} Rfxd8 {[%emt 0:00:30]} 16. Rad1 {[%emt 0:00:30]} Bc2 {[%emt 0:00:30]} 17. Rxd8+ {[%emt 0:00:30]} Rxd8 {[%emt 0:00:30]} 18. Ba1 {[%emt 0:00:30]} a6 {[%emt 0:00:30]} 19. Bf3 {[%emt 0:00:30]} Nc6 {[%emt 0:00:30]} 20. Ne4 {[%emt 0:00:30]} Bxe4 {[%emt 0:00:30]} 21. Bxe4 {[%emt 0:00:30]} Bxa1 {[%emt 0:00:30]} 22. Rxa1 {[%emt 0:00:30]} Rd4 {[%emt 0:00:30]} 23. Bxc6 {[%emt 0:00:30]} bxc6 {[%emt 0:00:30]} 24. Rc1 {[%emt 0:00:30]} Rd2 {[%emt 0:00:30]} 25. Kf1 {[%emt 0:00:30]} Ra2 {[%emt 0:00:30]} 26. Rb1 {[%emt 0:00:30]} Rxa4 {[%emt 0:00:30]} 27. Rb6 {[%emt 0:00:30]} Rxc4 {[%emt 0:00:30]} 28. Rxc6 {[%emt 0:00:30]} a5 {[%emt 0:00:30]} 29. Rc8+ {[%emt 0:00:30]} Kg7 {[%emt 0:00:30]} 30. c6 {[%emt 0:00:30]} a4 {[%emt 0:00:30]} 31. Ra8 {[%emt 0:00:30]} Rxc6 {[%emt 0:00:30]} 32. Rxa4 {[%emt 0:00:30]} Rc2 {[%emt 0:00:30]} 33. g4 {[%emt 0:00:30]} f5 {[%emt 0:00:30]} 34. gxf5 {[%emt 0:00:30]} exf5 {[%emt 0:00:30]} 35. Ra6 {[%emt 0:00:30]} g4 {[%emt 0:00:30]} 36. Kg2 {[%emt 0:00:30]} Rc3 {[%emt 0:00:30]} 37. Ra7+ {[%emt 0:00:30]} Kg6 {[%emt 0:00:30]} 38. Ra8 {[%emt 0:00:30]} Kg5 {[%emt 0:00:30]} 39. Rg8+ {[%emt 0:00:30]} Kf4 {[%emt 0:00:30]} 40. Rh8 {[%emt 0:00:30]} Rh3 {[%emt 0:00:30]} 41. Ra8 {[%emt 0:15:30]} Rf3 {[%emt 0:15:30]} 42. Rh8 {[%emt 0:00:30]} Kg5 {[%emt 0:00:30]} 43. Rg8+ {[%emt 0:00:30]} Kf6 {[%emt 0:00:30]} 44. Ra8 {[%emt 0:00:30]} h5 {[%emt 0:00:30]} 45. Rh8 {[%emt 0:00:30]} Kg6 {[%emt 0:00:30]} 46. Rg8+ {[%emt 0:00:30]} Kh7 {[%emt 0:00:30]} 47. Rg5 {[%emt 0:00:30]} Kh6 {[%emt 0:00:30]} 48. Rg8 {[%emt 0:00:30]} h4 {[%emt 0:00:30]} 49. Ra8 {[%emt 0:00:30]} Kg5 {[%emt 0:00:30]} 50. Ra4 {[%emt 0:00:30]} h3+ {[%emt 0:00:30]} 51. Kf1 {[%emt 0:00:30]} Rb3 {[%emt 0:00:30]} 52. Ra1 {[%emt 0:00:30]} Kf4 {[%emt 0:00:30]} 53. Re1 {[%emt 0:00:30]} Kf3 {[%emt 0:00:30]} 54. Kg1 {[%emt 0:00:30]} f4 {[%emt 0:00:30]} 55. Rf1 {[%emt 0:00:30]} Ke2 {[%emt 0:00:30]} 56. Ra1 {[%emt 0:00:30]} Rb2 {[%emt 0:00:30]} 57. Rc1 {[%emt 0:00:30]} Rd2 {[%emt 0:00:30]} 58. Ra1 {[%emt 0:00:30]} Rd3 {[%emt 0:00:30]} 59. Ra2+ {[%emt 0:00:30]} Kf3 {[%emt 0:00:30]} 60. Ra1 {[%emt 0:00:30]} Rb3 {[%emt 0:00:30]} 61. Re1 {[%emt 0:00:30]} Rb2 {[%emt 0:00:30]} 62. Ra1 {[%emt 0:00:30]} Ke2 {[%emt 0:00:30]} 63. Rc1 {[%emt 0:00:30]} Rd2 {[%emt 0:00:30]} 64. Ra1 {[%emt 0:00:30]} Rd1+ {[%emt 0:00:30]} 65. Rxd1 {[%emt 0:00:30]} Kxd1 {[%emt 0:00:30]} 66. Kf1 {[%emt 0:00:30]} f3 {[%emt 0:00:30]} 67. Kg1 {[%emt 0:00:30]} Ke1 {[%emt 0:00:30]} 68. Kh1 {[%emt 0:00:30]} g3 {[%emt 0:00:30]} 69. hxg3 {[%emt 0:00:30]} Kxf2 {[%emt 0:00:30]} 0-1